lending/lending_fUSD_20260119
["ID","MTS","AMOUNT","RATE_DAILY","PERIOD"]
[402719206,1768835432728,-420.0,0.00017248,2]
[402719207,1768835432738,-9092.64073007,0.00017251,2]
[402719208,1768835432748,-6928.85,0.00017252,2]
[402719209,1768835432759,-1000.0,0.0001726,2]
[402719210,1768835432769,-6928.85,0.00017296,2]
[402719211,1768835432778,-989.0,0.00017335,2]
[402719212,1768835432791,-6928.85,0.00017339,2]
[402719213,1768835432801,-179.2,0.00017443,2]
[402719214,1768835432811,-908.02,0.00017471,2]
[402719215,1768835432821,-500.0,0.00017479,2]
[402719216,1768835432831,-179.2,0.00017494,2]
[402719217,1768835432840,-2000.0,0.000175,2]
[402719218,1768835432850,-1000.0,0.00017534,2]
[402719219,1768835432859,-179.2,0.00017544,2]
[402719220,1768835432869,-179.2,0.00017595,2]
[402719221,1768835432879,-904.96598798,0.0001764,2]
[402719222,1768835432889,-179.2,0.00017646,2]
[402719223,1768835432898,-303.76301214,0.00017647,2]
[402719224,1768835432908,-179.2,0.00017696,2]
[402719225,1768835432918,-168.0,0.00017699,2]
[402719226,1768835432928,-150.0,0.00017699,2]
[402719227,1768835432937,-150.0,0.00017699,2]
[402719228,1768835432947,-150.0,0.00017699,2]
[402719229,1768835432956,-166.29990226,0.00017699,2]
[402719230,1768835432965,-150.0,0.00017699,2]
[402719231,1768835432975,-150.0,0.00017699,2]
[402719232,1768835432985,-168.0,0.00017705,2]
[402719233,1768835432995,-179.2,0.00017747,2]
[402719234,1768835433004,-150.0,0.00017754,2]
[402719235,1768835433014,-150.0,0.00017754,2]
[402719236,1768835433024,-150.0,0.00017754,2]
[402719237,1768835433034,-150.0,0.00017754,2]
[402719238,1768835433044,-595.37131296,0.00017775,2]
[402719239,1768835433053,-3441.558,0.00017789,2]
[402719240,1768835433064,-313.15,0.00017789,2]
[402719241,1768835433074,-179.2,0.00017797,2]
[402719242,1768835433083,-207726.9426,0.000178,2]
[402719243,1768835433093,-150.0,0.00017808,2]
[402719244,1768835433103,-551.0,0.00017808,2]
[402719245,1768835433113,-1000.0,0.00017808,2]
[402719246,1768835433123,-151.0,0.00017808,2]
[402719247,1768835433134,-151.0,0.00017808,2]
[402719248,1768835433144,-151.0,0.00017808,2]
[402719249,1768835433154,-196.17114968,0.00017808,2]
[402719250,1768835433164,-200.0,0.00017809,2]
[402719251,1768835433174,-200.0,0.00017809,2]
[402719252,1768835433184,-200.0,0.00017809,2]
[402719253,1768835433195,-200.0,0.00017809,2]
[402719254,1768835433206,-1326.18615,0.0001782,2]
[402719255,1768835433217,-1326.18616,0.0001782,2]
[402719256,1768835433232,-179.2,0.00017848,2]
[402719257,1768835433242,-150.0,0.00017863,2]
[402719258,1768835433253,-5800.0,0.00017887,2]
[402719259,1768835433263,-166.67,0.00017888,2]
[402719260,1768835433274,-5800.0,0.00017895,2]
[402719261,1768835433284,-179.2,0.00017899,2]
[402719262,1768835433294,-200.0,0.000179,6]
[402719263,1768835433305,-497.27700559,0.000179,2]
[402719264,1768835433314,-497.27700544,0.000179,2]
[402719265,1768835433323,-497.27700544,0.000179,2]
[402719266,1768835433332,-497.27700544,0.000179,2]
[402719267,1768835433342,-497.27700544,0.000179,2]
[402719268,1768835433351,-497.27700544,0.000179,2]
[402719269,1768835433360,-497.27700544,0.000179,2]
[402719270,1768835433370,-5800.0,0.00017904,2]
[402719271,1768835433379,-5800.0,0.00017912,2]
[402719272,1768835433389,-200.0,0.00017918,2]
[402719273,1768835433399,-5800.0,0.00017921,2]
[402719274,1768835433408,-5800.0,0.00017929,2]
[402719275,1768835433416,-5800.0,0.00017938,2]
[402719276,1768835433425,-5800.0,0.00017946,2]
[402719277,1768835433434,-179.2,0.00017949,2]
[402719278,1768835433442,-773.017,0.00017954,2]
[402719279,1768835433451,-2084.32602,0.00017956,2]
[402719280,1768835433461,-4168.6520399,0.00017956,2]
[402719281,1768835433470,-81887.60206089,0.00017956,2]
[402719283,1768835433483,-482.13,0.00017956,2]
[402719285,1768835433517,-1309.68764366,0.00017956,2]
[402719286,1768835433528,-827.08473548,0.00017956,2]
[402719287,1768835433538,-2389.94928522,0.00017956,2]
[402719288,1768835433573,-3954.798,0.00017956,2]
[402719290,1768835437501,-2344.66072333,0.00017956,2]
[402719291,1768835437566,-670.10000021,0.00017956,2]
[402719292,1768835437668,-14258.999999,0.00017956,2]
[402719293,1768835437682,-5972.68705834,0.00017956,2]
[402719294,1768835437696,-471.87366345,0.00017956,2]
[402719313,1768835439951,-150.0,0.00017539,2]
[402719314,1768835439962,-22839.30025605,0.00017956,2]
[402719315,1768835439976,-15326.61639768,0.00017956,2]
[402719316,1768835439989,-671.13398646,0.00017956,2]
[402719317,1768835440003,-455.51756921,0.00017956,2]
[402719318,1768835440014,-360.11324534,0.00017956,2]
[402719319,1768835440027,-953.18,0.00017956,2]
[402719321,1768835440105,-6681.8722495,0.00017956,2]
[402719322,1768835440116,-3030.275,0.00017956,2]
[402719323,1768835440133,-90168.33961408,0.00017956,2]
[402719324,1768835440144,-1000.0,0.00017963,2]
[402719325,1768835440154,-3816.0,0.00017972,2]
[402719326,1768835440164,-500.0,0.00017973,2]
[402719327,1768835440173,-500.0,0.00017973,2]
[402719328,1768835440183,-2000.0,0.00017995,2]
[402719329,1768835440193,-2000.0,0.00017995,2]
[402719330,1768835440203,-2000.0,0.00017995,2]
[402719331,1768835440214,-2000.0,0.00017995,2]
[402719332,1768835440225,-48780.43889235,0.00018,2]
[402719333,1768835440235,-989.88,0.00018,7]
[402719334,1768835440246,-150.0,0.00018,2]
[402719335,1768835440255,-1416.57077004,0.00018,2]
[402719336,1768835440265,-150.0,0.00018,2]
[402719337,1768835440275,-6754.64589002,0.00018,2]
[402719338,1768835440285,-150.0,0.00018,2]
[402719339,1768835440295,-888.19576499,0.00018,2]
[402719340,1768835440304,-150.0,0.00018,2]
[402719341,1768835440315,-213.0,0.00018,2]
[402719342,1768835440324,-150.381,0.00018,2]
[402719343,1768835440334,-171.292,0.00018,2]
[402719344,1768835440344,-150.0,0.00018,2]
[402719345,1768835440354,-297.611,0.00018,2]
[402719346,1768835440364,-150.193,0.00018,2]
[402719347,1768835440374,-150.0,0.00018,2]
[402719348,1768835440384,-150.0,0.00018,2]
[402719349,1768835440394,-150.044,0.00018,2]
[402719350,1768835440403,-150.0,0.00018,2]
[402719351,1768835440414,-158.0,0.00018,2]
[402719352,1768835440423,-200.0,0.00018,2]
[402719353,1768835440432,-159.99379814,0.00018,2]
[402719354,1768835440442,-200.0,0.00018,2]
[402719355,1768835440451,-615.0,0.00018,2]
[402719356,1768835440461,-1407.0,0.00018,2]
[402719357,1768835440470,-1332.0,0.00018,2]
[402719358,1768835440480,-351.0,0.00018,2]
[402719359,1768835440489,-1268.869,0.00018,2]
[402719360,1768835440504,-1000.0,0.00018,2]
[402719361,1768835440514,-1000.0,0.00018,2]
[402719362,1768835440524,-1000.0,0.00018,2]
[402719363,1768835440534,-1000.0,0.00018,2]
[402719364,1768835440544,-1000.0,0.00018,2]
[402719365,1768835440554,-1000.0,0.00018,2]
[402719366,1768835440564,-1000.0,0.00018,2]
[402719367,1768835440574,-1000.0,0.00018,2]
[402719368,1768835440583,-1000.0,0.00018,2]
[402719369,1768835440593,-1000.0,0.00018,2]
[402719370,1768835440602,-1000.0,0.00018,2]
[402719371,1768835440612,-1000.0,0.00018,2]
[402719372,1768835440622,-185.24,0.00018,2]
[402719373,1768835440632,-151.0,0.00018,2]
[402719374,1768835440642,-915.0,0.00018,2]
[402719375,1768835440652,-1264.0,0.00018,2]
[402719376,1768835440661,-1202.0,0.00018,2]
[402719377,1768835440671,-179.2,0.00018,2]
[402719378,1768835440682,-1326.18616,0.00018,2]
[402719379,1768835440691,-1326.18616,0.00018,2]
[402719380,1768835440702,-1326.18616,0.00018,2]
[402719381,1768835440712,-1326.18616,0.00018,2]
[402719382,1768835440725,-200.0,0.00018,2]
[402719383,1768835440735,-566.0,0.00018,2]
[402719384,1768835440744,-2440.0,0.00018,2]
[402719385,1768835440755,-4826.0,0.00018,2]
[402719386,1768835440766,-2124.0,0.00018038,2]
[402719387,1768835440775,-497.27700544,0.00018064,2]
[402719388,1768835440786,-657.0,0.00018074,2]
[402719389,1768835440796,-1000.0,0.00018082,2]
[402719390,1768835440807,-4000.26043237,0.00018097,2]
[402719391,1768835440817,-1777.47842535,0.000181,2]
[402719392,1768835440827,-500.0,0.000181,21]
[402719393,1768835440837,-559.64,0.00018154,2]
[402719394,1768835440846,-168.0,0.00018169,2]
[402719395,1768835440856,-264.26,0.00018173,2]
[402719396,1768835440869,-200.0,0.0001818,2]
[402719397,1768835440879,-200.0,0.0001818,2]
[402719398,1768835440889,-168.0,0.00018185,2]
[402719399,1768835440899,-302.03,0.00018227,2]
[402719400,1768835440909,-476.51909988,0.00018256,2]
[402719401,1768835440918,-497.27700544,0.00018263,2]
[402719402,1768835440929,-1000.0,0.00018265,2]
[402719403,1768835440939,-908.02,0.00018265,2]
[402719404,1768835440949,-500.0,0.000183,2]
[402719405,1768835440960,-1000.0,0.00018306,2]
[402719406,1768835440971,-617.40005154,0.00018323,2]
[402719407,1768835440981,-500.0,0.00018355,2]
[402719408,1768835440992,-150.0,0.00018355,2]
[402719409,1768835441003,-88373.43,0.00018356,2]
[402719410,1768835441014,-1000.0,0.00018356,2]
[402719411,1768835441025,-200.0,0.00018362,2]
[402719412,1768835441035,-200.0,0.00018362,2]
[402719413,1768835441045,-168.0,0.00018402,2]
[402719414,1768835441060,-559.64,0.00018428,2]
[402719415,1768835441070,-497.27700544,0.00018462,2]
[402719416,1768835441080,-300.0,0.000185,2]
[402719417,1768835441090,-500.0,0.000185,2]
[402719418,1768835441101,-151.0,0.000185,2]
[402719419,1768835441111,-1264.0,0.000185,2]
[402719420,1768835441121,-1264.0,0.000185,2]
[402719421,1768835441131,-152.0,0.000185,2]
[402719422,1768835441140,-151.0,0.000185,2]
[402719423,1768835441150,-1000.0,0.00018521,2]
[402719424,1768835441160,-200.0,0.00018545,2]
[402719425,1768835441169,-200.0,0.00018545,2]
[402719426,1768835441179,-166.66,0.00018563,2]
[402719427,1768835441189,-168.0,0.00018566,2]
[402719428,1768835441199,-168.0,0.00018571,2]
[402719429,1768835441209,-282.94,0.00018591,2]
[402719430,1768835441219,-1000.0,0.0001863,2]
[402719431,1768835441229,-168.0,0.00018639,2]
[402719432,1768835441239,-497.27700544,0.0001866,2]
[402719433,1768835441249,-1600.0,0.00018683,2]
[402719434,1768835441259,-503.0,0.00018685,2]
[402719435,1768835441270,-361.21,0.000187,3]
[402719436,1768835441279,-559.64,0.00018702,2]
[402719437,1768835441289,-200.0,0.00018731,2]
[402719438,1768835441299,-200.0,0.00018731,2]
[402719439,1768835441310,-180.0,0.00018732,2]
[402719440,1768835441319,-166.67,0.00018775,2]
[402719441,1768835441329,-981.0,0.000188,2]
[402719442,1768835441338,-307.0,0.000188,2]
[402719443,1768835441347,-200.0,0.000188,2]
[402719444,1768835441357,-300.0,0.000188,2]
[402719445,1768835441366,-497.27700544,0.00018859,2]
[402719446,1768835441376,-587.0,0.00018862,2]
[402719447,1768835441386,-640.24385345,0.00018871,2]
[402719448,1768835441395,-277.54,0.00018892,2]
[402719449,1768835441404,-500.0,0.000189,6]
[402719450,1768835441414,-1000.0,0.00018904,2]
[402719451,1768835441424,-276.66,0.00018924,2]
[402719452,1768835441435,-163.02902639,0.00018973,2]
[402719453,1768835441445,-559.64,0.00018976,2]
[402719454,1768835441455,-500.0,0.0001899,2]
[402719455,1768835441464,-500.0,0.0001899,2]
[402719456,1768835441476,-500.0,0.0001899,2]
[402719457,1768835441487,-500.0,0.0001899,2]
[402719458,1768835441497,-500.0,0.0001899,2]
[402719459,1768835441507,-500.0,0.0001899,2]
[402719460,1768835441516,-500.0,0.0001899,2]
[402719461,1768835441525,-500.0,0.0001899,2]
[402719462,1768835441534,-500.0,0.0001899,2]
[402719463,1768835441543,-500.0,0.0001899,2]
[402719464,1768835441553,-500.0,0.0001899,2]
[402719465,1768835441562,-500.0,0.0001899,2]
[402719466,1768835441572,-500.0,0.0001899,2]
[402719467,1768835441581,-500.0,0.0001899,2]
[402719468,1768835441590,-500.0,0.0001899,2]
[402719469,1768835441599,-500.0,0.0001899,2]
[402719470,1768835441609,-500.0,0.0001899,2]
[402719471,1768835441618,-500.0,0.0001899,2]
[402719472,1768835441628,-500.0,0.0001899,2]
[402719473,1768835441637,-500.0,0.0001899,2]
[402719474,1768835441646,-500.0,0.0001899,2]
[402719475,1768835441656,-500.0,0.0001899,2]
[402719476,1768835441665,-500.0,0.0001899,2]
[402719477,1768835441674,-500.0,0.0001899,2]
[402719478,1768835441684,-151.28,0.0001899,2]
[402719479,1768835441694,-151.28,0.0001899,2]
[402719480,1768835441704,-151.28,0.0001899,2]
[402719481,1768835441716,-500.0,0.0001899,2]
[402719482,1768835441726,-151.28,0.0001899,2]
[402719483,1768835441736,-151.28,0.0001899,2]
[402719484,1768835441746,-500.0,0.0001899,2]
[402719485,1768835441756,-500.0,0.0001899,2]
[402719486,1768835441765,-500.0,0.0001899,2]
[402719487,1768835441775,-500.0,0.0001899,2]
[402719488,1768835441786,-500.0,0.0001899,2]
[402719489,1768835441795,-500.0,0.0001899,2]
[402719490,1768835441815,-500.0,0.0001899,2]
[402719491,1768835441826,-500.0,0.0001899,2]
[402719492,1768835441837,-500.0,0.00018999,2]
[402719493,1768835441848,-1000.0,0.00019,2]
[402719494,1768835441860,-5164.43449728,0.00019,2]
[402719495,1768835441871,-400.0,0.00019,2]
[402719496,1768835441884,-500.0,0.00019,18]
[402719497,1768835441896,-300.0,0.00019,2]
[402719498,1768835441906,-30798.36021971,0.00019,2]
[402719499,1768835441972,-3013.09883196,0.00019,2]
[402719500,1768835441984,-447.1571751,0.00019,2]
[402719501,1768835441996,-303.94,0.00019,2]
[402719502,1768835442007,-3816.26585088,0.00019,2]
[402719524,1768835443911,-908.811586,0.00017708,2]
[402719525,1768835443922,-418.9359996,0.00017708,2]
[402719526,1768835444007,-11720.08992451,0.00017708,2]
[402719527,1768835444018,-151.0,0.0001899,2]
[402719528,1768835444028,-385752.47614437,0.00019,2]
[402719529,1768835444039,-768.0,0.00019,2]
[402719530,1768835444049,-500.0,0.00019,2]
[402719531,1768835444060,-500.0,0.00019,2]
[402719532,1768835444069,-500.0,0.00019,2]
[402719533,1768835444080,-500.0,0.00019,2]
[402719534,1768835444090,-500.0,0.00019,2]
[402719535,1768835444099,-500.0,0.00019,2]
[402719536,1768835444109,-500.0,0.00019,2]
[402719537,1768835444119,-500.0,0.00019,2]
[402719538,1768835444128,-500.0,0.00019,2]
[402719539,1768835444138,-500.0,0.00019,2]
[402719540,1768835444148,-500.0,0.00019,2]
[402719541,1768835444157,-500.0,0.00019,2]
[402719542,1768835444167,-500.0,0.00019,2]
[402719543,1768835444177,-500.0,0.00019,2]
[402719544,1768835444186,-500.0,0.00019,2]
[402719545,1768835444196,-500.0,0.00019,2]
[402719546,1768835444206,-500.0,0.00019,2]
[402719547,1768835444217,-500.0,0.00019,2]
[402719548,1768835444227,-500.0,0.00019,2]
[402719549,1768835444236,-500.0,0.00019,2]
[402719550,1768835444246,-500.0,0.00019,2]
[402719551,1768835444255,-500.0,0.00019,2]
[402719552,1768835444264,-500.0,0.00019,2]
[402719553,1768835444273,-500.0,0.00019,2]
[402719554,1768835444281,-500.0,0.00019,2]
[402719555,1768835444289,-500.0,0.00019,2]
[402719556,1768835444298,-645.0,0.00019,2]
[402719557,1768835444307,-1177.33919013,0.00019,2]
[402719558,1768835444317,-4574.78654101,0.00019,2]
[402719559,1768835444326,-358.01604775,0.0001901,7]
[402719560,1768835444336,-497.27700544,0.00019058,2]
[402719561,1768835444345,-908.02,0.00019059,2]
[402719562,1768835444354,-1500.0,0.00019068,2]
[402719563,1768835444364,-4168.5871,0.00019078,2]
[402719564,1768835444374,-151.28,0.00019168,2]
[402719565,1768835444383,-500.0,0.00019178,2]
[402719566,1768835444393,-500.0,0.00019178,2]
[402719567,1768835444403,-500.0,0.00019178,2]
[402719568,1768835444413,-500.0,0.00019178,2]
[402719569,1768835444423,-500.0,0.00019178,2]
[402719570,1768835444433,-500.0,0.00019178,2]
[402719571,1768835444442,-500.0,0.00019178,2]
[402719572,1768835444452,-500.0,0.00019178,2]
[402719573,1768835444462,-500.0,0.00019178,2]
[402719574,1768835444471,-500.0,0.00019178,2]
[402719575,1768835444481,-500.0,0.00019178,2]
[402719576,1768835444490,-500.0,0.00019178,2]
[402719577,1768835444499,-500.0,0.00019178,2]
[402719578,1768835444510,-500.0,0.00019178,2]
[402719579,1768835444519,-500.0,0.00019178,2]
[402719580,1768835444529,-500.0,0.00019178,2]
[402719581,1768835444538,-500.0,0.00019178,2]
[402719582,1768835444547,-500.0,0.00019178,2]
[402719583,1768835444561,-500.0,0.00019178,2]
[402719584,1768835444571,-500.0,0.00019178,2]
[402719585,1768835444580,-500.0,0.00019178,2]
[402719586,1768835444590,-500.0,0.00019178,2]
[402719587,1768835444599,-500.0,0.00019178,2]
[402719588,1768835444610,-221.4605292,0.00019178,2]
[402719589,1768835444619,-3000.0,0.00019178,2]
[402719590,1768835444628,-3005.79450426,0.00019178,7]
[402719591,1768835444638,-20114.47,0.00019178,2]
[402719592,1768835444648,-1131.84,0.00019178,30]
[402719593,1768835444657,-1000.0,0.00019178,2]
[402719594,1768835444666,-160.62380935,0.00019178,2]
[402719595,1768835444676,-150.0,0.00019178,2]
[402719596,1768835444686,-500.0,0.00019233,2]
[402719597,1768835444695,-409.52,0.0001925,2]
[402719598,1768835444705,-497.27700544,0.00019256,2]
[402719599,1768835444718,-500.0,0.00019288,2]
[402719600,1768835444727,-154.47095568,0.00019342,2]
[402719601,1768835444737,-500.0,0.00019342,2]
[402719602,1768835444748,-663.93287602,0.00019419,2]
[402719603,1768835444760,-282.94,0.00019436,2]
[402719604,1768835444772,-1000.0,0.00019452,2]
[402719605,1768835444783,-497.27700544,0.00019455,2]
[402719606,1768835444796,-166.66,0.00019483,2]
[402719607,1768835444806,-41597.26289272,0.000195,2]
[402719608,1768835444817,-264.26,0.0001957,2]
[402719609,1768835444827,-302.03,0.00019597,2]
[402719610,1768835444837,-2000.0,0.00019616,2]
[402719611,1768835444846,-250.0,0.00019629,2]
[402719612,1768835444856,-497.27700544,0.00019653,2]
[402719613,1768835444865,-500.0,0.00019726,2]
[402719614,1768835444877,-500.0,0.00019726,2]
[402719615,1768835444888,-500.0,0.00019726,2]
[402719616,1768835444898,-500.0,0.00019726,2]
[402719617,1768835444908,-500.0,0.00019726,2]
[402719618,1768835444918,-500.0,0.00019726,2]
[402719619,1768835444933,-228.69848108,0.00019726,2]
[402719620,1768835444943,-1000.0,0.00019726,2]
[402719621,1768835444952,-250.0,0.00019726,2]
[402719622,1768835444962,-1000.0,0.00019799,14]
[402719623,1768835444971,-800.0,0.000198,7]
[402719624,1768835444981,-497.27700544,0.00019852,2]
[402719625,1768835444992,-151.28,0.0001989,2]
[402719626,1768835445004,-151.28,0.0001989,2]
[402719627,1768835445018,-2084.32602,0.00019897,2]
[402719628,1768835445028,-4168.6520399,0.00019897,2]
[402719629,1768835445039,-14707.42798057,0.000199,2]
[402719630,1768835445055,-66657.64910273,0.000199,2]
[402719631,1768835445070,-25186.3396482,0.000199,2]
[402719632,1768835445083,-6855.90067227,0.000199,2]
[402719633,1768835445212,-6618.85677566,0.000199,2]
[402719634,1768835445222,-4917.94121335,0.000199,3]
[402719635,1768835445232,-3586.41235873,0.000199,2]
[402719636,1768835445242,-1348.96,0.000199,5]
[402719637,1768835445252,-1100.0,0.000199,7]
[402719638,1768835445262,-1494.51543623,0.000199,2]
[402719639,1768835445272,-9092.64073007,0.00019923,10]
[402719640,1768835445282,-151.28,0.0001994,2]
[402719641,1768835445292,-151.28,0.0001994,2]
[402719642,1768835445302,-151.28,0.0001994,2]
[402719643,1768835445313,-151.28,0.0001994,2]
[402719644,1768835445322,-147061.75266091,0.0001995,15]
[402719645,1768835445334,-39684.89639591,0.0001995,15]
[402719660,1768835447222,-3226.62496727,0.00018,2]
[402719661,1768835447233,-655.3938732,0.00018,2]
[402719662,1768835447244,-2679.98115953,0.00018,2]
[402719663,1768835447252,-151.0,0.00019178,2]
[402719664,1768835447263,-19187.38279918,0.0001995,15]
[402719665,1768835447276,-2169.16492796,0.0001995,15]
[402719666,1768835447304,-2681.09432384,0.0001995,15]
[402719667,1768835447358,-926.1528926,0.0001995,15]
[402719668,1768835447394,-459.58986104,0.0001995,15]
[402719695,1768835701882,170.49,0.000143,2]
[402719701,1768835781408,171.0,7.5e-07,2]
[402719705,1768835973891,9829.01,0.00014671,2]
[402719706,1768835973918,10000.01,0.00014671,2]
[402719707,1768835973944,3699.57,0.00014671,2]
[402719721,1768836146669,5000.0,0.00027397,120]
[402719728,1768836194791,1000.0,0.00015,2]
[402719729,1768836201967,5048.0,0.00027397,120]
[402719732,1768836208600,1000.0,0.00015,2]
[402719735,1768836241491,1000.0,0.00015,4]
[402719738,1768836255799,1000.0,0.00015,4]
[402719741,1768836280448,192.3351523,0.00015,2]
[402719765,1768836353056,9807.6748477,0.000133,2]
[402719766,1768836353083,464.33554353,0.000133,2]
[402719767,1768836360770,9535.67445647,8e-05,2]
[402719768,1768836360795,5201.7001574,8e-05,2]
[402719769,1768836364675,4798.3098426,0.00011,2]
[402719770,1768836364698,192.3351523,0.00011,2]
[402719793,1768836486644,3728.97322002,0.0001439,2]
[402719794,1768836488644,-666.0,0.0002,30]
[402719795,1768836489321,307.42043311,0.000125,2]
[402719801,1768836510228,268.23637142,0.000107,2]
[402719803,1768836516969,9731.77362858,0.0001,2]
[402719804,1768836516995,2304.75996476,0.0001,2]
[402719822,1768836562180,-167.44727892,0.0002,20]
[402719823,1768836562208,-150.77749031,0.0002,20]
[402719824,1768836562237,-1617.28953042,0.0002041,30]
[402719831,1768836597794,-3736.48570035,0.000209,30]
[402719858,1768836631752,-1148.78266955,0.00015675,2]
[402719859,1768836631818,-403.96733045,0.00015675,2]
[402719860,1768836631828,-1552.75,0.00015675,2]
[402719861,1768836631837,-8773.1014229,0.00015684,2]
[402719862,1768836631946,-3177.73565764,0.00015684,2]
[402719863,1768836631956,-133944.81134446,0.00015685,2]
[402719875,1768836637798,-2200.53,0.00015675,2]
[402719876,1768836637809,-2200.53,0.00015675,2]
[402719877,1768836637819,-899.13595435,0.00015675,2]
[402719878,1768836637831,-270.7775,0.00015675,2]
[402719879,1768836637843,-496.6280388,0.00015675,2]
[402719880,1768836637855,-533.98850685,0.00015675,2]
[402719881,1768836637864,-1564.174597,0.00015675,2]
[402719882,1768836637876,-636.355403,0.00015675,2]
[402719883,1768836637887,-71.46803834,0.00015675,2]
[402719910,1768836638308,-2129.06196166,0.00015675,2]
[402719912,1768836638318,-544.75254475,0.00015684,2]
[402719914,1768836638328,-178.90391375,0.00015685,2]
[402719917,1768836638340,-2053.64958982,0.00015685,2]
[402719921,1768836638374,-5694.9888,0.00015685,2]
[402719926,1768836638410,-1513.88525483,0.00015685,2]
[402719935,1768836638488,-659.93455117,0.00015685,2]
[402719937,1768836638500,-614.11217305,0.00015685,2]
[402719940,1768836638513,-855339.71437292,0.00015685,2]
[402719942,1768836638522,-195.0,0.00015777,2]
[402719944,1768836638533,-292.36869297,0.0001587,2]
[402719946,1768836638542,-11950.83708045,0.0001593,2]
[402719948,1768836638552,-151.0,0.00016054,2]
[402719950,1768836638561,-151.0,0.00016054,2]
[402719952,1768836638570,-170.49,0.00016087,2]
[402719954,1768836638580,-11950.83708045,0.00016176,2]
[402719955,1768836638589,-5000.00220969,0.000162,5]
[402719957,1768836638598,-11950.83708045,0.00016423,2]
[402719959,1768836638609,-174.55685692,0.00016438,2]
[402719961,1768836638618,-182.31062773,0.00016438,2]
[402719963,1768836638628,-926.0,0.00016438,2]
[402719965,1768836638638,-500.0,0.00016449,2]
[402719967,1768836638647,-11950.83708045,0.00016669,2]
[402719969,1768836638656,-166.33,0.00016712,2]
[402719971,1768836638666,-4716.27,0.00016805,2]
[402719973,1768836638676,-5341.7,0.00016805,2]
[402719975,1768836638685,-183.24,0.00016805,2]
[402719977,1768836638694,-150.99,0.00016805,2]
[402719979,1768836638704,-1000.0,0.00016805,2]
[402719981,1768836638713,-168.0,0.00016952,2]
[402719983,1768836638723,-299.99,0.00016952,4]
[402719985,1768836638732,-1894.35,0.00016952,2]
[402719987,1768836638742,-9999.99,0.00016952,2]
[402719989,1768836638751,-150.99,0.00016952,2]
[402719991,1768836638760,-749.31,0.00016952,2]
[402719993,1768836638770,-310.22,0.00016952,2]
[402719995,1768836638779,-26210.11,0.00016952,2]
[402719997,1768836638788,-1835.03,0.00016952,2]
[402719999,1768836638798,-9999.99,0.00016952,2]
[402720001,1768836638807,-9999.99,0.00016952,2]
[402720003,1768836638816,-999.99,0.00016952,2]
[402720005,1768836638824,-1199.06,0.00016952,2]
[402720007,1768836638833,-168.0,0.00016969,2]
[402720009,1768836638842,-168.0,0.00016995,2]
[402720010,1768836638851,-250.0,0.00017,2]
[402720012,1768836638860,-19782.22610136,0.00017,2]
[402720014,1768836638870,-234.88518858,0.00017065,2]
[402720016,1768836638879,-168.0,0.00017109,2]
[402720017,1768836638888,-168.0,0.00017109,2]
[402720019,1768836638897,-168.0,0.00017131,2]
[402720022,1768836638913,-168.0,0.00017148,2]